[Event "44th Chess Olympiad Open 2022"]
[Site "Chennai"]
[Date "2022.08.08"]
[Round "10.13"]
[White "Ganguly, Surya Shekhar"]
[Black "Pechac, Jergus"]
[Result "1/2-1/2"]
[WhiteElo "2608"]
[BlackElo "2594"]
[Annotator "RC"]
[PlyCount "85"]
[EventDate "2022.??.??"]
[TimeControl "60"]

1. e4 {[%emt 0:00:39]} e5 {[%emt 0:00:06]} 2. Nf3 {[%emt 0:00:11]} Nc6 {
[%emt 0:00:04]} 3. Bb5 {[%emt 0:00:15]} Nge7 {[%emt 0:00:08]} 4. Nc3 {[%emt 0:
00:00]} Ng6 {[%emt 0:00:06]} 5. d4 {[%emt 0:00:45]} Nxd4 {[%emt 0:00:06]} 6.
Nxd4 {[%emt 0:00:08]} exd4 {[%emt 0:00:05]} 7. Qxd4 {[%emt 0:00:07]} c6 {
[%emt 0:00:06]} 8. Be2 {[%emt 0:00:07]} Qb6 {[%emt 0:00:05]} 9. Qd3 {[%emt 0:
00:00]} Be7 {[%emt 0:00:08]} 10. O-O {[%emt 0:00:30]} O-O {[%emt 0:00:06]} 11.
a4 {[%emt 0:00:14]} d6 {[%emt 0:00:07]} 12. a5 {[%emt 0:00:56]} Qc7 {[%emt 0:
00:00]} 13. f4 {[%emt 0:00:14]} Bd7 {[%emt 0:00:07]} 14. Be3 {[%emt 0:00:18]}
Rfe8 {[%emt 0:00:05]} 15. g3 {[%emt 0:09:19]} b5 {[%emt 0:01:14]} 16. Bf3 {
[%emt 0:10:48]} Rab8 {[%emt 0:03:05]} 17. Ne2 {[%emt 0:05:54]} b4 {[%emt 0:00:
00]} 18. Rfd1 {[%emt 0:05:22]} c5 {[%emt 0:01:02]} 19. e5 {[%emt 0:04:59]} Bb5
{[%emt 0:02:19]} 20. exd6 {[%emt 0:00:38]} Bxd6 {[%emt 0:00:27]} 21. Qxd6 {
[%emt 0:00:31]} Qxd6 {[%emt 0:00:07]} 22. Rxd6 {[%emt 0:00:05]} Rxe3 {[%emt 0:
00:00]} 23. Kf2 {[%emt 0:00:11]} Rbe8 {[%emt 0:00:22]} 24. Ng1 {[%emt 0:00:38]}
Ne7 {[%emt 0:10:16]} 25. Rad1 {[%emt 0:10:56]} Re6 {[%emt 0:00:07]} 26. Rxe6 {
[%emt 0:02:06]} fxe6 {[%emt 0:00:03]} 27. c3 {[%emt 0:01:20]} bxc3 {[%emt 0:00:
00]} 28. bxc3 {[%emt 0:00:06]} a6 {[%emt 0:04:05]} 29. Be4 {[%emt 0:08:36]} Bc4
{[%emt 0:17:55]} 30. Bd3 {[%emt 0:25:28]} Bxd3 {[%emt 0:16:15]} 31. Rxd3 {
[%emt 0:00:03]} e5 {[%emt 0:00:29]} 32. fxe5 {[%emt 0:03:01]} Nc6 {[%emt 0:00:
00]} 33. Rd6 {[%emt 0:00:40]} Nxe5 {[%emt 0:01:03]} 34. Rxa6 {[%emt 0:04:56]}
Ng4+ {[%emt 0:00:33]} 35. Kf3 {[%emt 0:01:47]} Nxh2+ {[%emt 0:00:31]} 36. Kg2 {
[%emt 0:00:05]} Ng4 {[%emt 0:00:06]} 37. Rc6 {[%emt 0:00:06]} Rf8 {[%emt 0:00:
00]} 38. Rxc5 {[%emt 0:00:25]} Ne3+ {[%emt 0:00:19]} 39. Kh3 {[%emt 0:03:00]}
Rf1 {[%emt 0:00:38]} 40. Kh2 {[%emt 0:00:10]} Rf2+ {[%emt 0:00:48]} 41. Kh3 {
[%emt 0:32:22]} Rf1 {[%emt 0:30:49]} 42. Kh2 {[%emt 0:00:00]} Rf2+ {[%emt 0:00:
00]} 43. Kh3 {[%emt 0:00:00]} 1/2-1/2

[Event "44th Chess Olympiad Open 2022"]
[Site "Chennai"]
[Date "2022.08.08"]
[Round "10.13"]
[White "Gazik, Viktor"]
[Black "Sethuraman, S.P..."]
[Result "1-0"]
[WhiteElo "2544"]
[BlackElo "2623"]
[Annotator "RC"]
[PlyCount "105"]
[EventDate "2022.??.??"]
[TimeControl "60"]

1. e4 {[%emt 0:00:03]} e6 {[%emt 0:00:18]} 2. d4 {[%emt 0:02:02]} d5 {[%emt 0:
00:00]} 3. Nc3 {[%emt 0:01:26]} Nf6 {[%emt 0:00:06]} 4. e5 {[%emt 0:00:36]}
Nfd7 {[%emt 0:00:06]} 5. f4 {[%emt 0:00:58]} c5 {[%emt 0:00:05]} 6. Nf3 {
[%emt 0:00:03]} Nc6 {[%emt 0:00:05]} 7. Be3 {[%emt 0:00:03]} Be7 {[%emt 0:00:
00]} 8. Qd2 {[%emt 0:02:27]} a6 {[%emt 0:00:08]} 9. a3 {[%emt 0:02:27]} b5 {
[%emt 0:00:12]} 10. Be2 {[%emt 0:00:51]} O-O {[%emt 0:00:08]} 11. O-O {[%emt 0:
00:00]} Qc7 {[%emt 0:00:03]} 12. dxc5 {[%emt 0:15:48]} Nxc5 {[%emt 0:01:27]}
13. Nd4 {[%emt 0:01:53]} Ne4 {[%emt 0:00:06]} 14. Nxe4 {[%emt 0:01:30]} dxe4 {
[%emt 0:00:05]} 15. Qc3 {[%emt 0:15:54]} Bd7 {[%emt 0:00:18]} 16. Nxc6 {
[%emt 0:12:43]} Qxc6 {[%emt 0:11:38]} 17. Qxc6 {[%emt 0:02:07]} Bxc6 {[%emt 0:
00:00]} 18. Kf2 {[%emt 0:03:54]} f6 {[%emt 0:00:46]} 19. exf6 {[%emt 0:00:48]}
Bxf6 {[%emt 0:02:00]} 20. c3 {[%emt 0:01:16]} Bd5 {[%emt 0:05:23]} 21. Rad1 {
[%emt 0:04:10]} Bb3 {[%emt 0:08:05]} 22. Rd7 {[%emt 0:06:10]} Rfd8 {[%emt 0:00:
00]} 23. Rb7 {[%emt 0:07:04]} Rd6 {[%emt 0:07:37]} 24. g4 {[%emt 0:02:20]} h6 {
[%emt 0:16:10]} 25. g5 {[%emt 0:04:49]} hxg5 {[%emt 0:01:12]} 26. fxg5 {
[%emt 0:00:04]} Be5 {[%emt 0:00:03]} 27. h4 {[%emt 0:00:24]} Bd5 {[%emt 0:00:
00]} 28. Re7 {[%emt 0:00:16]} Rdd8 {[%emt 0:09:34]} 29. Bd4 {[%emt 0:03:02]}
Bxd4+ {[%emt 0:09:14]} 30. cxd4 {[%emt 0:00:01]} Rac8 {[%emt 0:00:15]} 31. Ke3
{[%emt 0:00:20]} Rf8 {[%emt 0:00:05]} 32. g6 {[%emt 0:00:55]} Rc2 {[%emt 0:00:
00]} 33. Rxf8+ {[%emt 0:07:18]} Kxf8 {[%emt 0:00:04]} 34. Rf7+ {[%emt 0:00:03]}
Kg8 {[%emt 0:00:02]} 35. Rd7 {[%emt 0:02:04]} Kf8 {[%emt 0:00:07]} 36. Rf7+ {
[%emt 0:00:29]} Kg8 {[%emt 0:00:04]} 37. Rd7 {[%emt 0:00:03]} Kf8 {[%emt 0:00:
00]} 38. b4 {[%emt 0:00:56]} Ra2 {[%emt 0:01:48]} 39. Rf7+ {[%emt 0:00:20]} Kg8
{[%emt 0:00:04]} 40. Rc7 {[%emt 0:00:29]} Kf8 {[%emt 0:01:33]} 41. h5 {[%emt 0:
00:00]} e5 {[%emt 0:10:17]} 42. dxe5 {[%emt 0:00:52]} Rxa3+ {[%emt 0:00:05]}
43. Kd4 {[%emt 0:06:04]} Be6 {[%emt 0:00:05]} 44. Ra7 {[%emt 0:03:02]} Ra2 {
[%emt 0:00:42]} 45. Ke3 {[%emt 0:05:12]} Ra4 {[%emt 0:01:00]} 46. Ra8+ {
[%emt 0:01:04]} Ke7 {[%emt 0:00:22]} 47. Ra7+ {[%emt 0:00:06]} Kf8 {[%emt 0:00:
00]} 48. Ra8+ {[%emt 0:00:09]} Ke7 {[%emt 0:00:08]} 49. h6 {[%emt 0:00:10]}
gxh6 {[%emt 0:03:14]} 50. g7 {[%emt 0:00:09]} Rxb4 {[%emt 0:04:05]} 51. Bg4 {
[%emt 0:01:19]} Rb3+ {[%emt 0:00:22]} 52. Kf4 {[%emt 0:00:19]} Rf3+ {[%emt 0:
00:00]} 53. Kxe4 {[%emt 0:00:59]} 1-0

[Event "44th Chess Olympiad Open 2022"]
[Site "Chennai"]
[Date "2022.08.08"]
[Round "10.13"]
[White "Repka, Christopher"]
[Black "Puranik, Abhimanyu"]
[Result "0-1"]
[WhiteElo "2516"]
[BlackElo "2612"]
[Annotator "RC"]
[PlyCount "90"]
[EventDate "2022.??.??"]
[TimeControl "60"]

1. Nf3 {[%emt 0:00:05]} Nf6 {[%emt 0:00:06]} 2. c4 {[%emt 0:00:13]} c5 {
[%emt 0:00:04]} 3. Nc3 {[%emt 0:00:25]} e6 {[%emt 0:00:19]} 4. g3 {[%emt 0:00:
00]} b6 {[%emt 0:00:16]} 5. Bg2 {[%emt 0:03:50]} Bb7 {[%emt 0:00:05]} 6. O-O {
[%emt 0:00:38]} Be7 {[%emt 0:00:05]} 7. Re1 {[%emt 0:01:40]} Ne4 {[%emt 0:00:
00]} 8. Qc2 {[%emt 0:01:28]} Nxc3 {[%emt 0:03:30]} 9. dxc3 {[%emt 0:00:25]} f5
{[%emt 0:03:37]} 10. Bf4 {[%emt 0:00:15]} Be4 {[%emt 0:07:37]} 11. Qd2 {
[%emt 0:00:08]} Nc6 {[%emt 0:10:35]} 12. Rad1 {[%emt 0:00:07]} Qc8 {[%emt 0:00:
00]} 13. Bd6 {[%emt 0:05:08]} Bf6 {[%emt 0:07:48]} 14. Bh3 {[%emt 0:07:27]} h6
{[%emt 0:05:53]} 15. Qe3 {[%emt 0:10:22]} Ne7 {[%emt 0:07:27]} 16. Ne5 {
[%emt 0:16:49]} Bg5 {[%emt 0:00:49]} 17. f4 {[%emt 0:01:24]} Bf6 {[%emt 0:00:
00]} 18. Bg4 {[%emt 0:13:01]} Bxe5 {[%emt 0:07:40]} 19. Bh5+ {[%emt 0:18:27]}
g6 {[%emt 0:00:07]} 20. Bxe5 {[%emt 0:00:05]} Rg8 {[%emt 0:02:53]} 21. Bf3 {
[%emt 0:00:09]} Qb7 {[%emt 0:00:46]} 22. Rd6 {[%emt 0:02:04]} Rd8 {[%emt 0:00:
00]} 23. Red1 {[%emt 0:00:04]} Nc8 {[%emt 0:03:00]} 24. R6d2 {[%emt 0:00:01]}
Ke7 {[%emt 0:00:13]} 25. Bd6+ {[%emt 0:02:30]} Nxd6 {[%emt 0:00:05]} 26. Rxd6 {
[%emt 0:00:03]} Bxf3 {[%emt 0:04:10]} 27. exf3 {[%emt 0:00:03]} Rge8 {[%emt 0:
00:00]} 28. g4 {[%emt 0:04:28]} Rf8 {[%emt 0:06:17]} 29. b4 {[%emt 0:04:05]}
Rc8 {[%emt 0:07:50]} 30. Qf2 {[%emt 0:06:57]} Rc7 {[%emt 0:01:22]} 31. Qh4+ {
[%emt 0:00:45]} Ke8 {[%emt 0:00:06]} 32. R1d3 {[%emt 0:01:07]} fxg4 {[%emt 0:
00:00]} 33. Qxh6 {[%emt 0:00:02]} gxf3 {[%emt 0:01:23]} 34. Qxg6+ {[%emt 0:00:
00]} Kd8 {[%emt 0:00:15]} 35. Qg7 {[%emt 0:02:10]} Re8 {[%emt 0:00:08]} 36. b5
{[%emt 0:00:26]} Kc8 {[%emt 0:00:23]} 37. Qg6 {[%emt 0:00:56]} Rh8 {[%emt 0:00:
00]} 38. Qg3 {[%emt 0:00:48]} Qe4 {[%emt 0:01:09]} 39. Qxf3 {[%emt 0:00:28]}
Qe1+ {[%emt 0:00:11]} 40. Kg2 {[%emt 0:00:34]} Rg8+ {[%emt 0:00:08]} 41. Kh3 {
[%emt 0:30:02]} Rh8+ {[%emt 0:31:15]} 42. Kg2 {[%emt 0:00:05]} Rg8+ {[%emt 0:
00:00]} 43. Kh3 {[%emt 0:00:00]} Kb8 {[%emt 0:00:00]} 44. Rxd7 {[%emt 0:00:00]}
Qg1 {[%emt 0:00:00]} 45. Rd8+ {[%emt 0:00:00]} Rc8 {[%emt 0:00:00]} 0-1

[Event "44th Chess Olympiad Open 2022"]
[Site "Chennai"]
[Date "2022.08.08"]
[Round "10.14"]
[White "Saric, Ivan"]
[Black "Jumabayev, Rinat"]
[Result "1/2-1/2"]
[WhiteElo "2680"]
[BlackElo "2617"]
[Annotator "RC"]
[PlyCount "157"]
[EventDate "2022.??.??"]
[TimeControl "60"]

1. e4 {[%emt 0:00:02]} e6 {[%emt 0:00:10]} 2. d4 {[%emt 0:00:02]} d5 {[%emt 0:
00:00]} 3. Nc3 {[%emt 0:00:03]} Nf6 {[%emt 0:00:06]} 4. e5 {[%emt 0:00:07]}
Nfd7 {[%emt 0:00:04]} 5. f4 {[%emt 0:00:04]} c5 {[%emt 0:00:03]} 6. Nf3 {
[%emt 0:00:05]} Nc6 {[%emt 0:00:03]} 7. Be3 {[%emt 0:00:06]} a6 {[%emt 0:00:04]
} 8. a3 {[%emt 0:00:31]} b5 {[%emt 0:00:06]} 9. Ne2 {[%emt 0:00:50]} Be7 {
[%emt 0:12:32]} 10. c3 {[%emt 0:02:07]} Rb8 {[%emt 0:05:26]} 11. Ng3 {[%emt 0:
00:00]} cxd4 {[%emt 0:12:43]} 12. cxd4 {[%emt 0:01:14]} b4 {[%emt 0:00:11]} 13.
Bd3 {[%emt 0:01:39]} bxa3 {[%emt 0:00:53]} 14. bxa3 {[%emt 0:00:10]} Qa5+ {
[%emt 0:01:55]} 15. Bd2 {[%emt 0:00:55]} Qb6 {[%emt 0:00:22]} 16. Rb1 {[%emt 0:
00:00]} Qa7 {[%emt 0:02:12]} 17. Rxb8 {[%emt 0:01:06]} Ndxb8 {[%emt 0:00:32]}
18. Qa1 {[%emt 0:00:57]} a5 {[%emt 0:04:45]} 19. f5 {[%emt 0:05:51]} Ba6 {
[%emt 0:06:20]} 20. Bc2 {[%emt 0:01:31]} O-O {[%emt 0:09:58]} 21. Be3 {[%emt 0:
00:00]} Nd7 {[%emt 0:07:49]} 22. Kf2 {[%emt 0:04:11]} Rc8 {[%emt 0:25:05]} 23.
fxe6 {[%emt 0:05:18]} fxe6 {[%emt 0:00:56]} 24. Rc1 {[%emt 0:00:24]} h6 {
[%emt 0:00:08]} 25. Ba4 {[%emt 0:09:30]} Qb7 {[%emt 0:00:21]} 26. Nh5 {[%emt 0:
00:00]} Nd8 {[%emt 0:05:47]} 27. Rxc8 {[%emt 0:00:38]} Qxc8 {[%emt 0:00:02]}
28. Qb1 {[%emt 0:01:14]} Nf8 {[%emt 0:00:19]} 29. Qb6 {[%emt 0:06:11]} Qc4 {
[%emt 0:02:14]} 30. Bd1 {[%emt 0:02:01]} a4 {[%emt 0:03:04]} 31. Nd2 {[%emt 0:
00:00]} Qb5 {[%emt 0:00:22]} 32. Qc7 {[%emt 0:01:57]} Nc6 {[%emt 0:00:49]} 33.
g3 {[%emt 0:02:43]} Kf7 {[%emt 0:00:18]} 34. Nf4 {[%emt 0:00:17]} g6 {[%emt 0:
00:00]} 35. h4 {[%emt 0:01:41]} Kg8 {[%emt 0:00:16]} 36. Be2 {[%emt 0:01:48]}
Qb7 {[%emt 0:00:14]} 37. Qxb7 {[%emt 0:00:10]} Bxb7 {[%emt 0:00:01]} 38. Nb1 {
[%emt 0:00:57]} Na5 {[%emt 0:00:10]} 39. Bb5 {[%emt 0:00:53]} Bc6 {[%emt 0:00:
00]} 40. Bxc6 {[%emt 0:00:10]} Nxc6 {[%emt 0:00:04]} 41. Ne2 {[%emt 0:30:14]}
Nd7 {[%emt 0:09:12]} 42. Bxh6 {[%emt 0:00:00]} Nb6 {[%emt 0:01:55]} 43. Be3 {
[%emt 0:00:00]} Kf7 {[%emt 0:08:44]} 44. Nec3 {[%emt 0:00:00]} Na5 {[%emt 0:00:
00]} 45. Ke2 {[%emt 0:00:00]} Nac4 {[%emt 0:02:39]} 46. Bc1 {[%emt 0:00:00]}
Kg7 {[%emt 0:00:36]} 47. Kd3 {[%emt 0:00:00]} Kf7 {[%emt 0:00:23]} 48. Nd1 {
[%emt 0:00:00]} Na5 {[%emt 0:04:24]} 49. Nb2 {[%emt 0:00:00]} Kg7 {[%emt 0:00:
00]} 50. Bd2 {[%emt 0:00:00]} Nc6 {[%emt 0:00:28]} 51. Nc3 {[%emt 0:00:00]}
Bxa3 {[%emt 0:00:07]} 52. Ncxa4 {[%emt 0:00:00]} Na8 {[%emt 0:02:21]} 53. Nd1 {
[%emt 0:00:00]} Nc7 {[%emt 0:00:01]} 54. Ne3 {[%emt 0:00:00]} Nb5 {[%emt 0:00:
00]} 55. Nc2 {[%emt 0:00:00]} Be7 {[%emt 0:00:14]} 56. Nc3 {[%emt 0:00:00]} Nc7
{[%emt 0:01:17]} 57. Ne2 {[%emt 0:00:00]} Nb5 {[%emt 0:00:26]} 58. Ng1 {
[%emt 0:00:00]} Nd8 {[%emt 0:01:14]} 59. Nf3 {[%emt 0:00:00]} Nf7 {[%emt 0:00:
00]} 60. g4 {[%emt 0:00:00]} Nh6 {[%emt 0:00:51]} 61. Ne3 {[%emt 0:00:00]} Na7
{[%emt 0:00:23]} 62. g5 {[%emt 0:00:00]} Nf7 {[%emt 0:00:02]} 63. Ng2 {[%emt 0:
00:00]} Nc6 {[%emt 0:00:42]} 64. Nf4 {[%emt 0:00:00]} Nfd8 {[%emt 0:00:07]} 65.
Nh2 {[%emt 0:01:44]} Ba3 {[%emt 0:00:20]} 66. Ng4 {[%emt 0:00:22]} Bb2 {
[%emt 0:00:26]} 67. Bc3 {[%emt 0:00:47]} Bxc3 {[%emt 0:02:05]} 68. Kxc3 {
[%emt 0:00:04]} Kf7 {[%emt 0:00:11]} 69. Nf6 {[%emt 0:02:09]} Ne7 {[%emt 0:00:
00]} 70. h5 {[%emt 0:00:17]} gxh5 {[%emt 0:00:13]} 71. N6xh5 {[%emt 0:00:05]}
Ndc6 {[%emt 0:00:34]} 72. Ng3 {[%emt 0:01:56]} Ng6 {[%emt 0:00:14]} 73. Nge2 {
[%emt 0:00:06]} Nh4 {[%emt 0:00:25]} 74. Nc1 {[%emt 0:00:32]} Nf3 {[%emt 0:00:
00]} 75. g6+ {[%emt 0:00:07]} Kg7 {[%emt 0:00:09]} 76. Nb3 {[%emt 0:03:00]}
Nfxe5 {[%emt 0:00:18]} 77. dxe5 {[%emt 0:00:14]} Nxe5 {[%emt 0:00:05]} 78. Nd4
{[%emt 0:00:27]} Nxg6 {[%emt 0:00:07]} 79. Nxg6 {[%emt 0:00:17]} 1/2-1/2

[Event "44th Chess Olympiad Open 2022"]
[Site "Chennai"]
[Date "2022.08.08"]
[Round "10.14"]
[White "Kozul, Zdenko"]
[Black "Urazayev, Arystanbek"]
[Result "0-1"]
[WhiteElo "2602"]
[BlackElo "2430"]
[Annotator "RC"]
[PlyCount "90"]
[EventDate "2022.??.??"]
[TimeControl "60"]

1. d4 {[%emt 0:00:12]} Nf6 {[%emt 0:00:50]} 2. Nf3 {[%emt 0:00:19]} e6 {
[%emt 0:00:45]} 3. c4 {[%emt 0:00:11]} d5 {[%emt 0:00:05]} 4. g3 {[%emt 0:00:
00]} Be7 {[%emt 0:01:57]} 5. Bg2 {[%emt 0:00:41]} O-O {[%emt 0:00:22]} 6. O-O {
[%emt 0:00:08]} c6 {[%emt 0:00:23]} 7. Nc3 {[%emt 0:03:34]} a5 {[%emt 0:02:12]}
8. Nd2 {[%emt 0:00:00]} b5 {[%emt 0:00:40]} 9. cxb5 {[%emt 0:00:00]} cxb5 {
[%emt 0:00:06]} 10. Nxb5 {[%emt 0:00:03]} Qb6 {[%emt 0:01:20]} 11. a4 {[%emt 0:
00:00]} Nc6 {[%emt 0:00:13]} 12. Nb1 {[%emt 0:05:21]} Ba6 {[%emt 0:04:28]} 13.
N1c3 {[%emt 0:03:10]} Rac8 {[%emt 0:06:41]} 14. Bg5 {[%emt 0:07:17]} Na7 {
[%emt 0:10:58]} 15. Qd2 {[%emt 0:05:01]} Bxb5 {[%emt 0:11:04]} 16. axb5 {
[%emt 0:15:30]} Rc4 {[%emt 0:01:22]} 17. e3 {[%emt 0:01:44]} Nxb5 {[%emt 0:00:
00]} 18. Bxf6 {[%emt 0:07:32]} Bxf6 {[%emt 0:01:47]} 19. Nxb5 {[%emt 0:01:11]}
Qxb5 {[%emt 0:00:02]} 20. Rxa5 {[%emt 0:00:21]} Qb6 {[%emt 0:01:16]} 21. Rfa1 {
[%emt 0:07:35]} h5 {[%emt 0:05:05]} 22. Bf3 {[%emt 0:02:46]} h4 {[%emt 0:03:36]
} 23. Bd1 {[%emt 0:01:15]} Rb8 {[%emt 0:10:08]} 24. b3 {[%emt 0:01:27]} Rcc8 {
[%emt 0:01:26]} 25. Ra7 {[%emt 0:00:53]} Rc7 {[%emt 0:04:25]} 26. Rxc7 {
[%emt 0:01:41]} Qxc7 {[%emt 0:00:04]} 27. b4 {[%emt 0:00:11]} Qd6 {[%emt 0:00:
00]} 28. Rb1 {[%emt 0:00:39]} e5 {[%emt 0:00:04]} 29. dxe5 {[%emt 0:02:24]}
Bxe5 {[%emt 0:00:02]} 30. f4 {[%emt 0:05:58]} Bf6 {[%emt 0:02:37]} 31. Bf3 {
[%emt 0:01:37]} Be7 {[%emt 0:02:52]} 32. b5 {[%emt 0:09:58]} hxg3 {[%emt 0:00:
00]} 33. Bxd5 {[%emt 0:01:23]} gxh2+ {[%emt 0:00:42]} 34. Kh1 {[%emt 0:00:32]}
Qg6 {[%emt 0:01:19]} 35. Rd1 {[%emt 0:12:38]} Rxb5 {[%emt 0:00:43]} 36. Qxh2 {
[%emt 0:00:06]} Rb6 {[%emt 0:03:15]} 37. Bf3 {[%emt 0:01:31]} Qf5 {[%emt 0:00:
00]} 38. Qe2 {[%emt 0:00:47]} Qh3+ {[%emt 0:00:52]} 39. Kg1 {[%emt 0:00:06]}
Rg6+ {[%emt 0:00:46]} 40. Bg2 {[%emt 0:00:07]} Bc5 {[%emt 0:01:00]} 41. Kf1 {
[%emt 0:08:26]} Bxe3 {[%emt 0:06:46]} 42. Qc2 {[%emt 0:09:49]} Qg4 {[%emt 0:00:
00]} 43. f5 {[%emt 0:01:23]} Qf4+ {[%emt 0:01:54]} 44. Ke1 {[%emt 0:00:23]}
Qg3+ {[%emt 0:00:18]} 45. Kf1 {[%emt 0:00:08]} Rg4 {[%emt 0:02:55]} 0-1

[Event "44th Chess Olympiad Open 2022"]
[Site "Chennai"]
[Date "2022.08.08"]
[Round "10.14"]
[White "Suleymenov, Alisher"]
[Black "Brkic, Ante"]
[Result "1-0"]
[WhiteElo "2467"]
[BlackElo "2611"]
[Annotator "RC"]
[PlyCount "93"]
[EventDate "2022.??.??"]
[TimeControl "60"]

1. d4 {[%emt 0:00:04]} Nf6 {[%emt 0:00:06]} 2. c4 {[%emt 0:00:05]} e6 {[%emt 0:
00:00]} 3. Nf3 {[%emt 0:00:04]} d5 {[%emt 0:00:07]} 4. Nc3 {[%emt 0:00:06]} Bb4
{[%emt 0:00:11]} 5. Bg5 {[%emt 0:00:13]} h6 {[%emt 0:12:17]} 6. Bxf6 {[%emt 0:
00:00]} Qxf6 {[%emt 0:00:04]} 7. Qa4+ {[%emt 0:00:07]} Nc6 {[%emt 0:00:08]} 8.
e3 {[%emt 0:00:05]} O-O {[%emt 0:00:15]} 9. Be2 {[%emt 0:00:06]} dxc4 {[%emt 0:
00:00]} 10. O-O {[%emt 0:00:07]} Bd7 {[%emt 0:00:56]} 11. Bxc4 {[%emt 0:00:19]}
Bxc3 {[%emt 0:00:08]} 12. bxc3 {[%emt 0:00:04]} Rfd8 {[%emt 0:00:28]} 13. Be2 {
[%emt 0:00:09]} Be8 {[%emt 0:01:26]} 14. Qa3 {[%emt 0:00:11]} Qe7 {[%emt 0:00:
00]} 15. Qb2 {[%emt 0:00:05]} b6 {[%emt 0:00:23]} 16. c4 {[%emt 0:00:14]} Na5 {
[%emt 0:01:00]} 17. e4 {[%emt 0:00:21]} Qf6 {[%emt 0:03:57]} 18. Qd2 {[%emt 0:
00:00]} e5 {[%emt 0:11:58]} 19. d5 {[%emt 0:00:59]} Bd7 {[%emt 0:00:05]} 20.
Qb2 {[%emt 0:00:04]} Bg4 {[%emt 0:19:28]} 21. Ne1 {[%emt 0:01:47]} Bd7 {
[%emt 0:02:52]} 22. Rc1 {[%emt 0:11:30]} Nb7 {[%emt 0:03:33]} 23. f4 {[%emt 0:
00:00]} Re8 {[%emt 0:00:33]} 24. Nd3 {[%emt 0:01:08]} Nc5 {[%emt 0:00:23]} 25.
Nxc5 {[%emt 0:05:50]} bxc5 {[%emt 0:00:04]} 26. Rb1 {[%emt 0:16:42]} Qd6 {
[%emt 0:16:04]} 27. f5 {[%emt 0:00:13]} a5 {[%emt 0:01:22]} 28. f6 {[%emt 0:00:
00]} gxf6 {[%emt 0:04:11]} 29. Qd2 {[%emt 0:02:21]} f5 {[%emt 0:00:01]} 30.
exf5 {[%emt 0:00:25]} e4 {[%emt 0:00:55]} 31. Qe3 {[%emt 0:08:59]} Re5 {
[%emt 0:08:42]} 32. f6 {[%emt 0:00:48]} Rg5 {[%emt 0:00:01]} 33. Rf4 {[%emt 0:
00:00]} Qe5 {[%emt 0:03:33]} 34. h4 {[%emt 0:13:58]} Rg6 {[%emt 0:00:06]} 35.
Rxe4 {[%emt 0:00:32]} Qxf6 {[%emt 0:00:18]} 36. Bh5 {[%emt 0:00:13]} Rg7 {
[%emt 0:00:15]} 37. Rf1 {[%emt 0:00:54]} Qd6 {[%emt 0:03:07]} 38. Rxf7 {
[%emt 0:04:50]} Rxf7 {[%emt 0:00:19]} 39. Bxf7+ {[%emt 0:00:05]} Kxf7 {[%emt 0:
00:00]} 40. Rf4+ {[%emt 0:00:06]} Kg8 {[%emt 0:04:59]} 41. Qg3+ {[%emt 0:30:38]
} Kh8 {[%emt 0:30:14]} 42. Qc3+ {[%emt 0:00:21]} Kg8 {[%emt 0:00:00]} 43. Rf6 {
[%emt 0:00:00]} Qe7 {[%emt 0:00:00]} 44. Qg3+ {[%emt 0:00:00]} Kh7 {[%emt 0:00:
00]} 45. Qg6+ {[%emt 0:00:00]} Kh8 {[%emt 0:00:00]} 46. Qxh6+ {[%emt 0:00:00]}
Qh7 {[%emt 0:00:00]} 47. Qxh7+ {[%emt 0:00:53]} 1-0

[Event "44th Chess Olympiad Open 2022"]
[Site "Chennai"]
[Date "2022.08.08"]
[Round "10.14"]
[White "Nogerbek, Kazybek"]
[Black "Bosiocic, Marin"]
[Result "1/2-1/2"]
[WhiteElo "2437"]
[BlackElo "2549"]
[Annotator "RC"]
[PlyCount "149"]
[EventDate "2022.??.??"]
[TimeControl "60"]

1. d4 {[%emt 0:00:08]} Nf6 {[%emt 0:00:08]} 2. c4 {[%emt 0:00:10]} e6 {[%emt 0:
00:00]} 3. Nf3 {[%emt 0:00:08]} b6 {[%emt 0:00:32]} 4. g3 {[%emt 0:00:37]} Ba6
{[%emt 0:00:10]} 5. b3 {[%emt 0:00:24]} Bb4+ {[%emt 0:00:11]} 6. Bd2 {[%emt 0:
00:00]} Be7 {[%emt 0:00:08]} 7. Bg2 {[%emt 0:00:09]} d5 {[%emt 0:00:10]} 8.
cxd5 {[%emt 0:00:40]} exd5 {[%emt 0:00:10]} 9. Nc3 {[%emt 0:00:49]} O-O {
[%emt 0:00:13]} 10. O-O {[%emt 0:00:07]} Bb7 {[%emt 0:00:12]} 11. Qb1 {[%emt 0:
00:00]} c5 {[%emt 0:08:15]} 12. Rd1 {[%emt 0:01:10]} Qc8 {[%emt 0:05:49]} 13.
dxc5 {[%emt 0:04:21]} bxc5 {[%emt 0:01:28]} 14. Ng5 {[%emt 0:10:55]} Rd8 {
[%emt 0:09:12]} 15. e4 {[%emt 0:23:23]} h6 {[%emt 0:02:31]} 16. e5 {[%emt 0:00:
00]} hxg5 {[%emt 0:01:16]} 17. Bxg5 {[%emt 0:00:10]} d4 {[%emt 0:06:50]} 18.
Bxb7 {[%emt 0:00:27]} Qxb7 {[%emt 0:00:21]} 19. exf6 {[%emt 0:00:04]} gxf6 {
[%emt 0:00:32]} 20. Bh6 {[%emt 0:00:15]} Nc6 {[%emt 0:25:33]} 21. Qf5 {[%emt 0:
00:00]} Ne5 {[%emt 0:05:01]} 22. Ne4 {[%emt 0:00:49]} Qc6 {[%emt 0:00:13]} 23.
Nd2 {[%emt 0:06:13]} a5 {[%emt 0:03:44]} 24. Bf4 {[%emt 0:04:41]} Ng6 {[%emt 0:
00:00]} 25. Re1 {[%emt 0:03:26]} a4 {[%emt 0:02:41]} 26. Rac1 {[%emt 0:02:49]}
axb3 {[%emt 0:01:28]} 27. axb3 {[%emt 0:00:08]} Qd7 {[%emt 0:04:51]} 28. Qe4 {
[%emt 0:04:58]} Kg7 {[%emt 0:00:47]} 29. b4 {[%emt 0:03:54]} Re8 {[%emt 0:00:
00]} 30. bxc5 {[%emt 0:02:26]} Bxc5 {[%emt 0:00:13]} 31. Qf3 {[%emt 0:01:02]}
Ra3 {[%emt 0:02:26]} 32. Qg2 {[%emt 0:03:22]} Rxe1+ {[%emt 0:00:21]} 33. Rxe1 {
[%emt 0:00:02]} Bb4 {[%emt 0:00:20]} 34. Rb1 {[%emt 0:03:46]} Bxd2 {[%emt 0:00:
00]} 35. Bxd2 {[%emt 0:00:02]} Ne5 {[%emt 0:02:06]} 36. Bf4 {[%emt 0:04:04]}
Nf3+ {[%emt 0:00:15]} 37. Kh1 {[%emt 0:00:06]} Qf5 {[%emt 0:00:17]} 38. Rc1 {
[%emt 0:03:21]} Qd5 {[%emt 0:02:35]} 39. Qh3 {[%emt 0:02:06]} Rc3 {[%emt 0:00:
00]} 40. Ra1 {[%emt 0:04:45]} d3 {[%emt 0:01:13]} 41. Qg4+ {[%emt 0:31:17]}
Ng5+ {[%emt 0:09:10]} 42. Kg1 {[%emt 0:00:00]} Qd4 {[%emt 0:04:14]} 43. h4 {
[%emt 0:00:00]} Rc2 {[%emt 0:08:01]} 44. Rf1 {[%emt 0:00:00]} Rxf2 {[%emt 0:00:
00]} 45. Rxf2 {[%emt 0:00:00]} d2 {[%emt 0:00:09]} 46. Qd1 {[%emt 0:00:00]} Ne4
{[%emt 0:00:27]} 47. Qxd2 {[%emt 0:00:00]} Nxd2 {[%emt 0:00:21]} 48. Bxd2 {
[%emt 0:00:00]} Kg6 {[%emt 0:00:59]} 49. Kg2 {[%emt 0:00:00]} Qe4+ {[%emt 0:00:
00]} 50. Kh2 {[%emt 0:00:00]} f5 {[%emt 0:00:14]} 51. Bf4 {[%emt 0:00:00]} Qe1
{[%emt 0:00:12]} 52. Kg2 {[%emt 0:00:00]} Qd1 {[%emt 0:00:59]} 53. Rd2 {
[%emt 0:00:00]} Qb1 {[%emt 0:00:41]} 54. Rf2 {[%emt 0:00:00]} Qe1 {[%emt 0:00:
00]} 55. Bd2 {[%emt 0:00:00]} Qe4+ {[%emt 0:00:24]} 56. Kh2 {[%emt 0:00:00]}
Kh5 {[%emt 0:00:07]} 57. Bg5 {[%emt 0:00:00]} Qe6 {[%emt 0:00:55]} 58. Bd2 {
[%emt 0:00:00]} f6 {[%emt 0:00:20]} 59. Kg2 {[%emt 0:00:00]} Qd5+ {[%emt 0:00:
00]} 60. Kh2 {[%emt 0:00:00]} Qe4 {[%emt 0:00:35]} 61. Kg1 {[%emt 0:00:00]} Qd4
{[%emt 0:00:30]} 62. Kg2 {[%emt 0:00:00]} Qc5 {[%emt 0:00:10]} 63. Bf4 {
[%emt 0:00:00]} Qd5+ {[%emt 0:02:31]} 64. Kh2 {[%emt 0:00:00]} Qb3 {[%emt 0:00:
00]} 65. Bd2 {[%emt 0:00:00]} Qd3 {[%emt 0:00:10]} 66. Kg2 {[%emt 0:00:00]} Qc2
{[%emt 0:02:06]} 67. Bf4 {[%emt 0:00:00]} Qd1 {[%emt 0:02:04]} 68. Bd2 {
[%emt 0:00:00]} Kg6 {[%emt 0:00:17]} 69. Bf4 {[%emt 0:00:00]} Qd5+ {[%emt 0:00:
00]} 70. Kh2 {[%emt 0:00:00]} Kh5 {[%emt 0:00:12]} 71. Bd2 {[%emt 0:00:00]} Qd3
{[%emt 0:00:31]} 72. Kg2 {[%emt 0:00:00]} f4 {[%emt 0:00:45]} 73. Bxf4 {
[%emt 0:00:00]} Kg4 {[%emt 0:00:07]} 74. Kh2 {[%emt 0:00:00]} Qd4 {[%emt 0:00:
00]} 75. Kg2 {[%emt 0:00:00]} 1/2-1/2